fUST/lending_fUST_20250715
["ID","MTS","AMOUNT","RATE_DAILY","PERIOD"]
[372103518,1752521449379,-460.0,0.00016712,2]
[372103519,1752521449388,-460.0,0.00016712,2]
[372103520,1752521449398,-460.0,0.00016712,2]
[372103521,1752521449408,-4603.44,0.00016712,2]
[372103522,1752521449417,-460.0,0.00016712,2]
[372103523,1752521449427,-460.0,0.00016712,2]
[372103524,1752521449436,-3519.89,0.00016712,2]
[372103525,1752521449446,-460.0,0.00016712,2]
[372103526,1752521449456,-353.05730634,0.00016712,2]
[372103527,1752521449466,-460.0,0.00016712,2]
[372103528,1752521449479,-460.0,0.00016712,2]
[372103529,1752521449489,-460.0,0.00016712,2]
[372103530,1752521449498,-460.0,0.00016712,2]
[372103531,1752521449508,-460.0,0.00016712,2]
[372103532,1752521449519,-1541.13,0.00016712,2]
[372103533,1752521449528,-460.0,0.00016712,2]
[372103534,1752521449537,-460.0,0.00016712,2]
[372103535,1752521449546,-460.0,0.00016712,2]
[372103536,1752521449557,-1774.95,0.00016712,2]
[372103537,1752521449567,-460.0,0.00016712,2]
[372103538,1752521449577,-460.0,0.00016712,2]
[372103539,1752521449586,-625.87,0.00016712,2]
[372103540,1752521449597,-460.0,0.00016712,2]
[372103541,1752521449608,-460.0,0.00016712,2]
[372103542,1752521449618,-504.0,0.00016712,2]
[372103543,1752521449628,-460.0,0.00016712,2]
[372103544,1752521449637,-460.0,0.00016712,2]
[372103545,1752521449647,-1010.19,0.00016712,2]
[372103546,1752521449658,-1565.01,0.00016712,2]
[372103547,1752521449667,-607.45,0.00016712,2]
[372103548,1752521449677,-460.0,0.00016712,2]
[372103549,1752521449687,-498.10045022,0.00016712,2]
[372103550,1752521449696,-460.0,0.00016712,2]
[372103551,1752521449706,-800.15,0.00016712,2]
[372103552,1752521449716,-240.52609319,0.00016712,2]
[372103553,1752521449726,-460.0,0.00016712,2]
[372103554,1752521449735,-460.0,0.00016712,2]
[372103555,1752521449744,-460.0,0.00016712,2]
[372103556,1752521449755,-2664.37,0.00016712,2]
[372103557,1752521449765,-781.64,0.00016712,2]
[372103558,1752521449774,-460.0,0.00016712,2]
[372103559,1752521449785,-460.0,0.00016712,2]
[372103560,1752521449796,-460.0,0.00016712,2]
[372103561,1752521449808,-460.0,0.00016712,2]
[372103562,1752521449818,-585.64873978,0.00016712,2]
[372103563,1752521449829,-460.0,0.00016712,2]
[372103564,1752521449839,-1254.62,0.00016712,2]
[372103565,1752521449849,-460.0,0.00016712,2]
[372103566,1752521449860,-460.0,0.00016712,2]
[372103567,1752521449869,-515.09,0.00016712,2]
[372103568,1752521449879,-460.0,0.00016712,2]
[372103569,1752521449890,-460.0,0.00016712,2]
[372103570,1752521449899,-491.15,0.00016712,2]
[372103571,1752521449910,-601.37,0.00016712,2]
[372103572,1752521449919,-460.0,0.00016712,2]
[372103573,1752521449930,-460.0,0.00016712,2]
[372103574,1752521449940,-460.0,0.00016712,2]
[372103575,1752521449950,-460.0,0.00016712,2]
[372103576,1752521449960,-460.0,0.00016712,2]
[372103577,1752521449969,-460.0,0.00016712,2]
[372103578,1752521449979,-460.0,0.00016712,2]
[372103579,1752521449989,-460.0,0.00016712,2]
[372103580,1752521449999,-194.36180327,0.00016712,2]
[372103581,1752521450009,-460.0,0.00016712,2]
[372103582,1752521450019,-460.0,0.00016712,2]
[372103583,1752521450029,-460.0,0.00016712,2]
[372103584,1752521450038,-460.0,0.00016712,2]
[372103585,1752521450047,-2395.32,0.00016712,2]
[372103586,1752521450057,-460.0,0.00016712,2]
[372103587,1752521450067,-460.0,0.00016712,2]
[372103588,1752521450076,-460.0,0.00016712,2]
[372103589,1752521450086,-460.0,0.00016712,2]
[372103590,1752521450096,-506.16053034,0.00016712,2]
[372103591,1752521450105,-1133.4,0.00016712,2]
[372103592,1752521450116,-460.0,0.00016712,2]
[372103593,1752521450125,-460.0,0.00016712,2]
[372103594,1752521450135,-460.0,0.00016712,2]
[372103595,1752521450145,-731.85,0.00016712,2]
[372103596,1752521450155,-512.11,0.00016712,2]
[372103597,1752521450165,-510.95,0.00016712,2]
[372103598,1752521450175,-460.0,0.00016712,2]
[372103599,1752521450184,-460.0,0.00016712,2]
[372103600,1752521450194,-460.0,0.00016712,2]
[372103601,1752521450205,-1574.94,0.00016712,2]
[372103602,1752521450215,-460.0,0.00016712,2]
[372103603,1752521450225,-460.0,0.00016712,2]
[372103604,1752521450235,-460.0,0.00016712,2]
[372103605,1752521450247,-607.81,0.00016712,2]
[372103606,1752521450257,-460.0,0.00016712,2]
[372103607,1752521450266,-460.0,0.00016712,2]
[372103608,1752521450277,-460.0,0.00016712,2]
[372103609,1752521450286,-460.0,0.00016712,2]
[372103610,1752521450296,-460.0,0.00016712,2]
[372103611,1752521450306,-460.0,0.00016712,2]
[372103612,1752521450316,-460.0,0.00016712,2]
[372103613,1752521450325,-463.06636206,0.00016712,2]
[372103614,1752521450334,-1735.66,0.00016712,2]
[372103615,1752521450344,-460.0,0.00016712,2]
[372103616,1752521450354,-460.0,0.00016712,2]
[372103617,1752521450365,-460.0,0.00016712,2]
[372103618,1752521450374,-746.86,0.00016712,2]
[372103619,1752521450384,-500.0,0.00016712,2]
[372103620,1752521450394,-265.03779462,0.00016712,2]
[372103621,1752521450403,-500.0,0.0001674,2]
[372103622,1752521450412,-231.54870353,0.00016747,2]
[372103623,1752521450421,-501.62812896,0.00016747,2]
[372103624,1752521450431,-500.0,0.00016767,2]
[372103625,1752521450441,-158.03020304,0.00016773,2]
[372103626,1752521450451,-500.0,0.00016773,2]
[372103627,1752521450461,-500.0,0.00016773,2]
[372103628,1752521450470,-500.0,0.00016773,2]
[372103629,1752521450483,-151.0298654,0.00016773,2]
[372103630,1752521450493,-638.0285363,0.00016773,2]
[372103631,1752521450502,-500.0,0.00016773,2]
[372103632,1752521450512,-500.0,0.00016773,2]
[372103633,1752521450523,-500.0,0.00016773,2]
[372103634,1752521450533,-500.0,0.00016773,2]
[372103635,1752521450542,-500.0,0.00016773,2]
[372103636,1752521450553,-500.0,0.00016773,2]
[372103637,1752521450563,-500.0,0.00016773,2]
[372103638,1752521450572,-500.0,0.00016795,2]
[372103639,1752521450582,-160.0,0.00016818,2]
[372103640,1752521450591,-838.70323114,0.00016818,2]
[372103641,1752521450601,-525.46609069,0.00016818,2]
[372103642,1752521450610,-160.0,0.00016818,2]
[372103643,1752521450620,-215.47013733,0.00016818,2]
[372103644,1752521450629,-160.0,0.00016818,2]
[372103645,1752521450639,-230.73061749,0.00016818,2]
[372103646,1752521450649,-214.33456592,0.00016818,2]
[372103647,1752521450658,-12600.81778503,0.00016818,2]
[372103648,1752521450667,-160.0,0.00016818,2]
[372103649,1752521450677,-500.0,0.00016822,2]
[372103650,1752521450686,-500.0,0.00016849,2]
[372103651,1752521450696,-500.0,0.00016877,2]
[372103652,1752521450706,-500.0,0.00016904,2]
[372103653,1752521450715,-500.0,0.00016932,2]
[372103654,1752521450725,-5282.76937415,0.00016934,2]
[372103655,1752521450734,-500.0,0.00016959,2]
[372103656,1752521450743,-151.0,0.00016986,2]
[372103657,1752521450753,-460.0,0.00016986,2]
[372103658,1752521450763,-460.0,0.00016986,2]
[372103659,1752521450773,-178.103456,0.00016986,2]
[372103660,1752521450782,-178.103456,0.00016986,2]
[372103661,1752521450793,-460.0,0.00016986,2]
[372103662,1752521450803,-460.0,0.00016986,2]
[372103663,1752521450813,-460.0,0.00016986,2]
[372103664,1752521450823,-151.0,0.00016986,2]
[372103665,1752521450832,-232.23016428,0.00016986,2]
[372103666,1752521450842,-151.0,0.00016986,2]
[372103667,1752521450852,-460.0,0.00016986,2]
[372103668,1752521450863,-460.0,0.00016986,2]
[372103669,1752521450873,-460.0,0.00016986,2]
[372103670,1752521450882,-460.0,0.00016986,2]
[372103671,1752521450891,-460.0,0.00016986,2]
[372103672,1752521450901,-460.0,0.00016986,2]
[372103673,1752521450911,-182.08783053,0.00016986,2]
[372103674,1752521450921,-541.34404419,0.00016986,2]
[372103675,1752521450931,-460.0,0.00016986,2]
[372103676,1752521450940,-460.0,0.00016986,2]
[372103677,1752521450949,-460.0,0.00016986,2]
[372103678,1752521450959,-460.0,0.00016986,2]
[372103679,1752521450969,-460.0,0.00016986,2]
[372103680,1752521450978,-460.0,0.00016986,2]
[372103681,1752521450988,-460.0,0.00016986,2]
[372103682,1752521450997,-460.0,0.00016986,2]
[372103683,1752521451117,-191.2645485,0.00016986,2]
[372103684,1752521451128,-500.0,0.00016986,2]
[372103685,1752521451138,-460.0,0.00016986,2]
[372103686,1752521451148,-460.0,0.00016986,2]
[372103687,1752521451158,-460.0,0.00016986,2]
[372103688,1752521451168,-460.0,0.00016986,2]
[372103689,1752521451178,-460.0,0.00016986,2]
[372103690,1752521451187,-517.51736164,0.00016986,2]
[372103691,1752521451197,-460.0,0.00016986,2]
[372103692,1752521451207,-460.0,0.00016986,2]
[372103693,1752521451217,-460.0,0.00016986,2]
[372103694,1752521451227,-460.0,0.00016986,2]
[372103695,1752521451236,-460.0,0.00016986,2]
[372103696,1752521451246,-460.0,0.00016986,2]
[372103697,1752521451255,-460.0,0.00016986,2]
[372103698,1752521451265,-544.66711692,0.00016986,2]
[372103699,1752521451275,-460.0,0.00016986,2]
[372103700,1752521451285,-460.0,0.00016986,2]
[372103701,1752521451294,-460.0,0.00016986,2]
[372103702,1752521451304,-460.0,0.00016986,2]
[372103703,1752521451313,-494.01,0.00016986,2]
[372103704,1752521451323,-460.0,0.00016986,2]
[372103705,1752521451332,-460.0,0.00016986,2]
[372103706,1752521451342,-460.0,0.00016986,2]
[372103707,1752521451352,-529.82,0.00016986,2]
[372103708,1752521451362,-460.0,0.00016986,2]
[372103709,1752521451371,-460.0,0.00016986,2]
[372103710,1752521451381,-460.0,0.00016986,2]
[372103711,1752521451390,-460.0,0.00016986,2]
[372103712,1752521451401,-460.0,0.00016986,2]
[372103713,1752521451411,-460.0,0.00016986,2]
[372103714,1752521451420,-460.0,0.00016986,2]
[372103715,1752521451430,-460.0,0.00016986,2]
[372103716,1752521451439,-460.0,0.00016986,2]
[372103717,1752521451448,-460.0,0.00016986,2]
[372103718,1752521451458,-460.0,0.00016986,2]
[372103719,1752521451467,-772.69,0.00016986,2]
[372103720,1752521451478,-460.0,0.00016986,2]
[372103721,1752521451490,-460.0,0.00016986,2]
[372103722,1752521451499,-460.0,0.00016986,2]
[372103723,1752521451508,-460.0,0.00016986,2]
[372103724,1752521451518,-460.0,0.00016986,2]
[372103725,1752521451529,-460.0,0.00016986,2]
[372103726,1752521451539,-460.0,0.00016986,2]
[372103727,1752521451548,-460.0,0.00016986,2]
[372103728,1752521451559,-460.0,0.00016986,2]
[372103729,1752521451569,-460.0,0.00016986,2]
[372103730,1752521451578,-460.0,0.00016986,2]
[372103731,1752521451587,-460.0,0.00016986,2]
[372103732,1752521451597,-460.0,0.00016986,2]
[372103733,1752521451606,-684.65,0.00016986,2]
[372103734,1752521451616,-460.0,0.00016986,2]
[372103735,1752521451625,-593.68401713,0.00016986,2]
[372103736,1752521451634,-460.0,0.00016986,2]
[372103737,1752521451644,-460.0,0.00016986,2]
[372103738,1752521451653,-591.18,0.00016986,2]
[372103739,1752521451663,-460.0,0.00016986,2]
[372103740,1752521451672,-460.0,0.00016986,2]
[372103741,1752521451682,-460.0,0.00016986,2]
[372103742,1752521451692,-462.55391539,0.00016986,2]
[372103743,1752521451702,-460.0,0.00016986,2]
[372103744,1752521451713,-460.0,0.00016986,2]
[372103745,1752521451724,-460.0,0.00016986,2]
[372103746,1752521451733,-460.0,0.00016986,2]
[372103747,1752521451743,-460.0,0.00016986,2]
[372103748,1752521451752,-460.0,0.00016986,2]
[372103749,1752521451762,-460.0,0.00016986,2]
[372103750,1752521451771,-460.0,0.00016986,2]
[372103751,1752521451780,-460.0,0.00016986,2]
[372103752,1752521451790,-460.0,0.00016986,2]
[372103753,1752521451799,-460.0,0.00016986,2]
[372103754,1752521451809,-783.46,0.00016986,2]
[372103755,1752521451819,-460.0,0.00016986,2]
[372103756,1752521451828,-435.64467231,0.00016986,2]
[372103757,1752521451838,-547.0,0.00016986,2]
[372103758,1752521451847,-460.0,0.00016986,2]
[372103759,1752521451857,-460.0,0.00016986,2]
[372103760,1752521451866,-273.19767997,0.00016986,2]
[372103761,1752521451876,-460.0,0.00016986,2]
[372103762,1752521451886,-460.0,0.00016986,2]
[372103763,1752521451896,-393.87297624,0.00016986,2]
[372103764,1752521451906,-460.0,0.00016986,2]
[372103765,1752521451916,-460.0,0.00016986,2]
[372103766,1752521451926,-460.0,0.00016986,2]
[372103767,1752521451936,-460.0,0.00016986,2]
[372103768,1752521451945,-460.0,0.00016986,2]
[372103769,1752521451955,-460.0,0.00016986,2]
[372103770,1752521451964,-460.0,0.00016986,2]
[372103771,1752521451974,-590.11139795,0.00016986,2]
[372103772,1752521451984,-460.0,0.00016986,2]
[372103773,1752521451993,-460.0,0.00016986,2]
[372103774,1752521452003,-460.0,0.00016986,2]
[372103775,1752521452012,-460.0,0.00016986,2]
[372103776,1752521452022,-838.43,0.00016986,2]
[372103777,1752521452031,-460.0,0.00016986,2]
[372103778,1752521452041,-479.04,0.00016986,2]
[372103779,1752521452050,-460.0,0.00016986,2]
[372103780,1752521452060,-5778.15,0.00016986,2]
[372103781,1752521452070,-460.0,0.00016986,2]
[372103782,1752521452080,-750.66,0.00016986,2]
[372103783,1752521452090,-460.0,0.00016986,2]
[372103784,1752521452099,-460.0,0.00016986,2]
[372103785,1752521452109,-327.93131642,0.00016986,2]
[372103786,1752521452119,-460.0,0.00016986,2]
[372103787,1752521452128,-1472.9,0.00016986,2]
[372103788,1752521452139,-460.0,0.00016986,2]
[372103789,1752521452151,-548.70595581,0.00016986,2]
[372103790,1752521452162,-472.98,0.00016986,2]
[372103791,1752521452172,-460.0,0.00016986,2]
[372103792,1752521452181,-460.0,0.00016986,2]
[372103793,1752521452191,-732.5,0.00016986,2]
[372103794,1752521452201,-2131.08,0.00016986,2]
[372103795,1752521452211,-571.65461872,0.00016986,2]
[372103796,1752521452220,-460.0,0.00016986,2]
[372103797,1752521452229,-1046.19,0.00016986,2]
[372103798,1752521452239,-490.63122503,0.00016986,2]
[372103799,1752521452249,-915.91,0.00016986,2]
[372103800,1752521452259,-460.0,0.00016986,2]
[372103801,1752521452269,-460.0,0.00016986,2]
[372103802,1752521452279,-460.0,0.00016986,2]
[372103803,1752521452290,-460.0,0.00016986,2]
[372103804,1752521452299,-460.0,0.00016986,2]
[372103805,1752521452310,-151.0,0.00016986,2]
[372103806,1752521452320,-460.0,0.00016986,2]
[372103807,1752521452330,-642.45,0.00016986,2]
[372103808,1752521452340,-460.0,0.00016986,2]
[372103809,1752521452349,-460.0,0.00016986,2]
[372103810,1752521452359,-460.0,0.00016986,2]
[372103811,1752521452369,-4603.44,0.00016986,2]
[372103812,1752521452379,-460.0,0.00016986,2]
[372103813,1752521452389,-3519.89,0.00016986,2]
[372103814,1752521452399,-460.0,0.00016986,2]
[372103815,1752521452408,-189.35343318,0.00016986,2]
[372103816,1752521452418,-460.0,0.00016986,2]
[372103817,1752521452427,-460.0,0.00016986,2]
[372103818,1752521452437,-460.0,0.00016986,2]
[372103819,1752521452446,-1541.13,0.00016986,2]
[372103820,1752521452456,-460.0,0.00016986,2]
[372103821,1752521452466,-460.0,0.00016986,2]
[372103822,1752521452478,-1774.95,0.00016986,2]
[372103823,1752521452489,-460.0,0.00016986,2]
[372103824,1752521452499,-625.87,0.00016986,2]
[372103825,1752521452508,-460.0,0.00016986,2]
[372103826,1752521452518,-460.0,0.00016986,2]
[372103827,1752521452527,-504.0,0.00016986,2]
[372103828,1752521452536,-151.0,0.00016986,2]
[372103829,1752521452547,-460.0,0.00016986,2]
[372103830,1752521452557,-460.0,0.00016986,2]
[372103831,1752521452566,-1010.19,0.00016986,2]
[372103832,1752521452576,-1565.01,0.00016986,2]
[372103833,1752521452585,-607.45,0.00016986,2]
[372103834,1752521452594,-460.0,0.00016986,2]
[372103835,1752521452604,-460.0,0.00016986,2]
[372103836,1752521452613,-800.15,0.00016986,2]
[372103837,1752521452623,-460.0,0.00016986,2]
[372103838,1752521452633,-460.0,0.00016986,2]
[372103839,1752521452642,-460.0,0.00016986,2]
[372103840,1752521452652,-2664.37,0.00016986,2]
[372103841,1752521452661,-781.64,0.00016986,2]
[372103842,1752521452671,-460.0,0.00016986,2]
[372103843,1752521452680,-460.0,0.00016986,2]
[372103844,1752521452689,-460.0,0.00016986,2]
[372103845,1752521452699,-460.0,0.00016986,2]
[372103846,1752521452708,-1254.62,0.00016986,2]
[372103847,1752521452718,-460.0,0.00016986,2]
[372103848,1752521452727,-515.09,0.00016986,2]
[372103849,1752521452736,-491.15,0.00016986,2]
[372103850,1752521452746,-601.37,0.00016986,2]
[372103851,1752521452755,-460.0,0.00016986,2]
[372103852,1752521452764,-460.0,0.00016986,2]
[372103853,1752521452773,-460.0,0.00016986,2]
[372103854,1752521452783,-460.0,0.00016986,2]
[372103855,1752521452792,-460.0,0.00016986,2]
[372103856,1752521452802,-460.0,0.00016986,2]
[372103857,1752521452812,-460.0,0.00016986,2]
[372103858,1752521452821,-460.0,0.00016986,2]
[372103859,1752521452830,-460.0,0.00016986,2]
[372103860,1752521452840,-2395.32,0.00016986,2]
[372103861,1752521452851,-460.0,0.00016986,2]
[372103862,1752521452860,-460.0,0.00016986,2]
[372103863,1752521452871,-444.14886663,0.00016986,2]
[372103864,1752521452882,-1133.4,0.00016986,2]
[372103865,1752521452893,-460.0,0.00016986,2]
[372103866,1752521452903,-731.85,0.00016986,2]
[372103867,1752521452912,-512.11,0.00016986,2]
[372103868,1752521452922,-510.95,0.00016986,2]
[372103869,1752521452932,-460.0,0.00016986,2]
[372103870,1752521452942,-460.0,0.00016986,2]
[372103871,1752521452952,-1574.94,0.00016986,2]
[372103872,1752521452961,-460.0,0.00016986,2]
[372103873,1752521452972,-460.0,0.00016986,2]
[372103874,1752521452982,-460.0,0.00016986,2]
[372103875,1752521452991,-460.0,0.00016986,2]
[372103876,1752521453001,-460.0,0.00016986,2]
[372103877,1752521453010,-1735.66,0.00016986,2]
[372103878,1752521453020,-466.72916978,0.00016986,2]
[372103879,1752521453030,-159.70735303,0.00016986,2]
[372103880,1752521453039,-746.86,0.00016986,2]
[372103881,1752521453048,-334.68428812,0.00016986,2]
[372103882,1752521453058,-1549.88675141,0.00016989,2]
[372103883,1752521453067,-1000.0,0.00017,2]
[372103884,1752521453077,-1000.0,0.00017021,2]
[372103885,1752521453087,-1000.0,0.00017021,2]
[372103886,1752521453096,-1000.0,0.00017021,2]
[372103887,1752521453106,-194.92,0.0001714,2]
[372103888,1752521453117,-2436.43689974,0.00017202,2]
[372103889,1752521453126,-151.0,0.0001726,2]
[372103890,1752521453136,-460.0,0.0001726,2]
[372103891,1752521453145,-460.0,0.0001726,2]
[372103892,1752521453155,-460.0,0.0001726,2]
[372103893,1752521453165,-460.0,0.0001726,2]
[372103894,1752521453174,-460.0,0.0001726,2]
[372103895,1752521453183,-151.0,0.0001726,2]
[372103896,1752521453192,-151.0,0.0001726,2]
[372103897,1752521453202,-460.0,0.0001726,2]
[372103898,1752521453211,-460.0,0.0001726,2]
[372103899,1752521453220,-460.0,0.0001726,2]
[372103900,1752521453230,-460.0,0.0001726,2]
[372103901,1752521453239,-460.0,0.0001726,2]
[372103902,1752521453248,-460.0,0.0001726,2]
[372103903,1752521453258,-460.0,0.0001726,2]
[372103904,1752521453267,-460.0,0.0001726,2]
[372103905,1752521453277,-460.0,0.0001726,2]
[372103906,1752521453286,-500.0,0.0001726,2]
[372103907,1752521453296,-460.0,0.0001726,2]
[372103908,1752521453306,-460.0,0.0001726,2]
[372103909,1752521453316,-460.0,0.0001726,2]
[372103910,1752521453325,-460.0,0.0001726,2]
[372103911,1752521453334,-460.0,0.0001726,2]
[372103912,1752521453343,-460.0,0.0001726,2]
[372103913,1752521453353,-460.0,0.0001726,2]
[372103914,1752521453362,-460.0,0.0001726,2]
[372103915,1752521453372,-204.86255954,0.0001726,2]
[372103916,1752521453381,-494.01,0.0001726,2]
[372103917,1752521453390,-460.0,0.0001726,2]
[372103918,1752521453399,-460.0,0.0001726,2]
[372103919,1752521453409,-506.66037813,0.0001726,2]
[372103920,1752521453418,-529.82,0.0001726,2]
[372103921,1752521453428,-460.0,0.0001726,2]
[372103922,1752521453438,-460.0,0.0001726,2]
[372103923,1752521453447,-460.0,0.0001726,2]
[372103924,1752521453457,-460.0,0.0001726,2]
[372103925,1752521453467,-460.0,0.0001726,2]
[372103926,1752521453478,-460.0,0.0001726,2]
[372103927,1752521453489,-460.0,0.0001726,2]
[372103928,1752521453498,-772.69,0.0001726,2]
[372103929,1752521453507,-460.0,0.0001726,2]
[372103930,1752521453517,-460.0,0.0001726,2]
[372103931,1752521453527,-460.0,0.0001726,2]
[372103932,1752521453536,-460.0,0.0001726,2]
[372103933,1752521453546,-460.0,0.0001726,2]
[372103934,1752521453557,-460.0,0.0001726,2]
[372103935,1752521453566,-460.0,0.0001726,2]
[372103936,1752521453677,-460.0,0.0001726,2]
[372103937,1752521453687,-151.0,0.0001726,2]
[372103938,1752521453697,-460.0,0.0001726,2]
[372103939,1752521453706,-684.65,0.0001726,2]
[372103940,1752521453716,-460.0,0.0001726,2]
[372103941,1752521453725,-460.0,0.0001726,2]
[372103942,1752521453735,-460.0,0.0001726,2]
[372103943,1752521453744,-460.0,0.0001726,2]
[372103944,1752521453754,-460.0,0.0001726,2]
[372103945,1752521453764,-460.0,0.0001726,2]
[372103946,1752521453773,-460.0,0.0001726,2]
[372103947,1752521453782,-460.0,0.0001726,2]
[372103948,1752521453791,-151.339883,0.0001726,2]
[372103949,1752521453801,-460.0,0.0001726,2]
[372103950,1752521453810,-460.0,0.0001726,2]
[372103951,1752521453820,-460.0,0.0001726,2]
[372103952,1752521453830,-460.0,0.0001726,2]
[372103953,1752521453840,-523.68,0.0001726,2]
[372103954,1752521453851,-460.0,0.0001726,2]
[372103955,1752521453861,-783.46,0.0001726,2]
[372103956,1752521453870,-520.12,0.0001726,2]
[372103957,1752521453880,-460.0,0.0001726,2]
[372103958,1752521453890,-460.0,0.0001726,2]
[372103959,1752521453900,-460.0,0.0001726,2]
[372103960,1752521453910,-460.0,0.0001726,2]
[372103961,1752521453920,-151.0,0.0001726,2]
[372103962,1752521453930,-460.0,0.0001726,2]
[372103963,1752521453939,-460.0,0.0001726,2]
[372103964,1752521453949,-460.0,0.0001726,2]
[372103965,1752521453958,-460.0,0.0001726,2]
[372103966,1752521453969,-460.0,0.0001726,2]
[372103967,1752521453978,-151.0,0.0001726,2]
[372103968,1752521453988,-460.0,0.0001726,2]
[372103969,1752521453998,-460.0,0.0001726,2]
[372103970,1752521454007,-541.96,0.0001726,2]
[372103971,1752521454017,-838.43,0.0001726,2]
[372103972,1752521454026,-460.0,0.0001726,2]
[372103973,1752521454036,-479.04,0.0001726,2]
[372103974,1752521454045,-5778.15,0.0001726,2]
[372103975,1752521454055,-750.66,0.0001726,2]
[372103976,1752521454064,-1472.9,0.0001726,2]
[372103977,1752521454074,-472.98,0.0001726,2]
[372103978,1752521454084,-460.0,0.0001726,2]
[372103979,1752521454094,-732.5,0.0001726,2]
[372103980,1752521454104,-2131.08,0.0001726,2]
[372103981,1752521454114,-460.0,0.0001726,2]
[372103982,1752521454124,-1046.19,0.0001726,2]
[372103983,1752521454133,-915.91,0.0001726,2]
[372103984,1752521454143,-460.0,0.0001726,2]
[372103985,1752521454153,-460.0,0.0001726,2]
[372103986,1752521454162,-460.0,0.0001726,2]
[372103987,1752521454172,-195.13794482,0.0001726,2]
[372103988,1752521454182,-460.0,0.0001726,2]
[372103989,1752521454191,-460.0,0.0001726,2]
[372103990,1752521454200,-642.45,0.0001726,2]
[372103991,1752521454210,-460.0,0.0001726,2]
[372103992,1752521454219,-460.0,0.0001726,2]
[372103993,1752521454229,-4603.44,0.0001726,2]
[372103994,1752521454238,-460.0,0.0001726,2]
[372103995,1752521454248,-460.0,0.0001726,2]
[372103996,1752521454257,-3519.89,0.0001726,2]
[372103997,1752521454267,-460.0,0.0001726,2]
[372103998,1752521454277,-309.43847576,0.0001726,2]
[372103999,1752521454286,-460.0,0.0001726,2]
[372104000,1752521454295,-1541.13,0.0001726,2]
[372104001,1752521454305,-460.0,0.0001726,2]
[372104002,1752521454315,-460.0,0.0001726,2]
[372104003,1752521454324,-151.0,0.0001726,2]
[372104004,1752521454334,-1774.95,0.0001726,2]
[372104005,1752521454344,-192.782596,0.0001726,2]
[372104006,1752521454354,-460.0,0.0001726,2]
[372104007,1752521454363,-460.0,0.0001726,2]
[372104008,1752521454372,-625.87,0.0001726,2]
[372104009,1752521454382,-460.0,0.0001726,2]
[372104010,1752521454392,-504.0,0.0001726,2]
[372104011,1752521454401,-460.0,0.0001726,2]
[372104012,1752521454411,-1010.19,0.0001726,2]
[372104013,1752521454421,-1565.01,0.0001726,2]
[372104014,1752521454430,-460.0,0.0001726,2]
[372104015,1752521454440,-607.45,0.0001726,2]
[372104016,1752521454449,-460.0,0.0001726,2]
[372104017,1752521454459,-800.15,0.0001726,2]